fUSD/lending_fUSD_20251024
["ID","MTS","AMOUNT","RATE_DAILY","PERIOD"]
[392282965,1761307832320,-151.0,0.00038863,2]
[392282967,1761307832330,-168.0,0.00038868,2]
[392282969,1761307832339,-500.0,0.00038884,30]
[392282971,1761307832348,-8020.53606386,0.00038886,2]
[392282973,1761307832357,-196.3286,0.00038888,30]
[392282975,1761307832367,-500.0,0.00038908,30]
[392282977,1761307832376,-6539.0,0.00038927,2]
[392282979,1761307832387,-6456.0,0.00038927,2]
[392282982,1761307832403,-3487.0,0.00038927,2]
[392282984,1761307832415,-500.0,0.00038968,30]
[392282986,1761307832425,-6420.5953,0.00039029,2]
[392282988,1761307832435,-696.48,0.00039041,2]
[392282990,1761307832445,-475.59,0.00039041,2]
[392282992,1761307832454,-475.59,0.00039041,2]
[392282994,1761307832464,-4.71126161,0.00039041,2]
[392282996,1761307832477,-691.76873839,0.00039041,2]
[392282998,1761307832487,-696.48,0.00039041,2]
[392283000,1761307832496,-500.0,0.00039061,30]
[392283002,1761307832506,-500.0,0.00039129,30]
[392283004,1761307832516,-810.58879112,0.0003931,2]
[392283007,1761307832525,-500.0,0.00039354,30]
[392283008,1761307832535,-500.0,0.00039399,30]
[392283011,1761307832544,-168.0,0.00039437,120]
[392283012,1761307832554,-239.35,0.00039452,2]
[392283014,1761307832564,-999.99,0.00039484,2]
[392283016,1761307832573,-4966.85,0.00039484,2]
[392283018,1761307832582,-150.99,0.00039484,2]
[392283021,1761307832592,-150.99,0.00039484,30]
[392283023,1761307832604,-150.0,0.00039489,30]
[392283024,1761307832614,-150.0,0.00039489,30]
[392283026,1761307832623,-500.0,0.00039489,30]
[392283028,1761307832633,-152.0,0.00039503,4]
[392283030,1761307832642,-4059.8188,0.0003951,2]
[392283033,1761307832652,-233.7175,0.0003951,2]
[392283035,1761307832662,-279.0283,0.0003951,2]
[392283036,1761307832673,-2131.7729,0.0003951,2]
[392283038,1761307832684,-810.58879112,0.00039539,2]
[392283040,1761307832694,-500.0,0.00039544,30]
[392283042,1761307832703,-183.38,0.00039593,60]
[392283044,1761307832712,-210.46599188,0.00039599,30]
[392283047,1761307832722,-878.86657509,0.00039605,30]
[392283049,1761307832732,-16620.52559476,0.0003961,2]
[392283050,1761307832742,-500.0,0.00039645,30]
[392283052,1761307832752,-200.0,0.000397,14]
[392283054,1761307832761,-500.0,0.00039725,7]
[392283056,1761307832771,-500.0,0.00039725,7]
[392283058,1761307832780,-1100.0,0.00039725,7]
[392283060,1761307832790,-150.0,0.00039725,2]
[392283062,1761307832799,-500.0,0.00039725,7]
[392283064,1761307832807,-500.0,0.00039725,7]
[392283066,1761307832816,-500.0,0.00039725,7]
[392283068,1761307832826,-150.0,0.00039725,7]
[392283070,1761307832835,-500.0,0.00039725,2]
[392283072,1761307832844,-1117.0,0.00039725,7]
[392283074,1761307832853,-168.0,0.00039748,7]
[392283076,1761307832863,-150.0,0.0003978,2]
[392283078,1761307832873,-500.0,0.0003978,7]
[392283080,1761307832881,-500.0,0.0003978,7]
[392283082,1761307832890,-500.0,0.0003978,7]
[392283084,1761307832899,-500.0,0.0003978,2]
[392283086,1761307832909,-1117.0,0.0003978,7]
[392283088,1761307832918,-5307.02011736,0.0003979,2]
[392283090,1761307832927,-963.4388,0.00039799,2]
[392283092,1761307832936,-1000.0,0.00039799,120]
[392283094,1761307832946,-1000.0,0.000398,2]
[392283096,1761307832955,-2500.0,0.000398,2]
[392283098,1761307832965,-500.0,0.000398,14]
[392283100,1761307832976,-195.16970776,0.000398,2]
[392283102,1761307832985,-677.99360628,0.000398,12]
[392283104,1761307832995,-2904.15362122,0.00039812,2]
[392283106,1761307833004,-200.0,0.00039835,2]
[392283108,1761307833014,-500.0,0.00039835,7]
[392283110,1761307833023,-500.0,0.00039835,7]
[392283112,1761307833032,-400.0,0.00039835,7]
[392283114,1761307833041,-500.0,0.00039835,2]
[392283116,1761307833051,-1117.0,0.00039835,7]
[392283117,1761307833060,-810.58879112,0.00039868,2]
[392283119,1761307833069,-154.28821076,0.0003988,15]
[392283122,1761307833079,-500.0,0.00039889,7]
[392283124,1761307833088,-551.14665809,0.00039889,7]
[392283126,1761307833098,-500.0,0.00039889,2]
[392283128,1761307833107,-1117.0,0.00039889,7]
[392283130,1761307833116,-483.07541564,0.0003989,2]
[392283131,1761307833125,-16448.81468543,0.0003989,3]
[392283151,1761307833299,-1254.41808677,0.0003989,3]
[392283451,1761307837660,-244.20738208,0.00038637,15]
[392283452,1761307837671,-903.0,0.00038927,2]
[392283453,1761307837681,-1011.0,0.000397,7]
[392283454,1761307837692,-43.85118792,0.0003989,3]
[392283455,1761307837704,-2506.09710681,0.0003989,3]
[392283456,1761307837717,-2343.46774871,0.0003989,3]
[392283457,1761307837749,-16129.78130096,0.0003989,3]
[392283458,1761307837759,-150.35,0.0003989,2]
[392283459,1761307837771,-150.35,0.0003989,2]
[392283460,1761307837781,-5154.24154576,0.0003989,2]
[392283461,1761307837791,-23031.60675246,0.00039899,2]
[392283465,1761307839867,-3227.66411034,0.00039899,2]
[392283466,1761307839879,-4567.43663301,0.00039899,2]
[392283467,1761307839974,-2344.05060419,0.00039899,2]
[392283468,1761307839987,-1000.0,0.00039899,2]
[392283469,1761307839999,-500.0,0.00039899,7]
[392283470,1761307840010,-500.0,0.00039899,30]
[392283471,1761307840022,-500.0,0.00039899,2]
[392283472,1761307840034,-500.0,0.00039899,2]
[392283473,1761307840355,-644.61516007,0.000399,2]
[392283474,1761307840365,-192905.9012,0.000399,2]
[392283475,1761307840375,-800.0,0.000399,14]
[392283476,1761307840386,-814.2186586,0.000399,2]
[392283477,1761307840396,-500.0,0.00039911,30]
[392283478,1761307840406,-500.0,0.00039944,7]
[392283479,1761307840417,-500.0,0.00039944,2]
[392283480,1761307840428,-1117.0,0.00039944,7]
[392283481,1761307840438,-620.13,0.00039945,2]
[392283482,1761307840448,-377.62,0.00039945,2]
[392283483,1761307840458,-168.0,0.00039953,2]
[392283484,1761307840467,-150.35,0.0003996,2]
[392283485,1761307840477,-150.35,0.00039966,2]
[392283486,1761307840487,-150.35,0.00039966,2]
[392283487,1761307840497,-77452.8602332,0.0003997,3]
[392283488,1761307840507,-500.0,0.00039973,5]
[392283489,1761307840518,-598.14929221,0.00039973,5]
[392283490,1761307840528,-506.15167206,0.00039973,3]
[392283491,1761307840539,-500.0,0.00039973,2]
[392283492,1761307840549,-500.0,0.00039973,5]
[392283493,1761307840560,-384.94150132,0.00039973,5]
[392283494,1761307840569,-116179.29035,0.00039976,3]
[392283495,1761307840579,-83799.460067,0.00039976,3]
[392283496,1761307840590,-19363.2150583,0.00039979,3]
[392283497,1761307840601,-13966.5766778,0.00039979,3]
[392283498,1761307840611,-500.0,0.00039979,2]
[392283499,1761307840624,-151.0,0.00039979,120]
[392283500,1761307840634,-151.0,0.00039979,120]
[392283501,1761307840644,-151.0,0.00039979,120]
[392283502,1761307840654,-471.32523,0.00039979,120]
[392283503,1761307840664,-471.32523,0.00039979,120]
[392283504,1761307840674,-471.32523,0.00039979,120]
[392283505,1761307840684,-471.32523,0.00039979,120]
[392283506,1761307840694,-151.0,0.00039979,120]
[392283507,1761307840704,-151.0,0.00039979,120]
[392283508,1761307840714,-151.0,0.00039979,120]
[392283509,1761307840723,-152.313958,0.00039979,120]
[392283510,1761307840733,-917.904031,0.00039979,120]
[392283511,1761307840745,-151.0,0.00039979,120]
[392283512,1761307840756,-151.0,0.00039979,120]
[392283513,1761307840767,-151.0,0.00039979,120]
[392283514,1761307840778,-151.0,0.00039979,120]
[392283515,1761307840787,-917.904031,0.00039979,120]
[392283516,1761307840797,-263.72052,0.00039979,120]
[392283517,1761307840808,-151.0,0.00039979,120]
[392283518,1761307840818,-256.93135,0.00039979,120]
[392283519,1761307840827,-917.904031,0.00039979,120]
[392283520,1761307840837,-151.0,0.00039979,120]
[392283521,1761307840847,-151.0,0.00039979,60]
[392283522,1761307840856,-151.0,0.00039979,120]
[392283523,1761307840866,-917.904031,0.00039979,120]
[392283524,1761307840876,-256.93135,0.00039979,120]
[392283525,1761307840886,-516.973854,0.00039979,120]
[392283526,1761307840895,-256.93135,0.00039979,120]
[392283527,1761307840906,-151.0,0.00039979,120]
[392283528,1761307840915,-151.0,0.00039979,30]
[392283529,1761307840925,-256.93135,0.00039979,120]
[392283530,1761307840934,-516.973854,0.00039979,120]
[392283531,1761307840944,-151.0,0.00039979,120]
[392283532,1761307840953,-151.0,0.00039979,30]
[392283533,1761307840963,-516.973854,0.00039979,120]
[392283534,1761307840973,-151.0,0.00039979,120]
[392283535,1761307840984,-151.0,0.00039979,120]
[392283536,1761307840993,-151.0,0.00039979,120]
[392283537,1761307841003,-516.973854,0.00039979,120]
[392283538,1761307841013,-151.0,0.00039979,120]
[392283539,1761307841022,-151.0,0.00039979,120]
[392283540,1761307841032,-151.0,0.00039979,120]
[392283541,1761307841042,-426.83885,0.00039979,120]
[392283542,1761307841052,-426.83885,0.00039979,120]
[392283543,1761307841062,-234.765136,0.00039979,120]
[392283544,1761307841073,-151.0,0.00039979,120]
[392283545,1761307841083,-426.83885,0.00039979,120]
[392283546,1761307841093,-151.0,0.00039979,120]
[392283547,1761307841103,-426.83885,0.00039979,120]
[392283548,1761307841113,-151.0,0.00039979,120]
[392283549,1761307841123,-151.0,0.00039979,120]
[392283550,1761307841132,-268.323642,0.00039979,120]
[392283551,1761307841142,-151.0,0.00039979,120]
[392283552,1761307841152,-707.115867,0.00039979,120]
[392283553,1761307841162,-151.0,0.00039979,120]
[392283554,1761307841173,-707.115867,0.00039979,120]
[392283555,1761307841183,-151.0,0.00039979,120]
[392283556,1761307841193,-1268.253906,0.00039979,120]
[392283557,1761307841203,-707.115867,0.00039979,120]
[392283558,1761307841213,-151.0,0.00039979,120]
[392283559,1761307841223,-1268.253906,0.00039979,120]
[392283560,1761307841235,-707.115867,0.00039979,120]
[392283561,1761307841245,-151.0,0.00039979,120]
[392283562,1761307841257,-151.0,0.00039979,120]
[392283563,1761307841266,-1268.253906,0.00039979,120]
[392283564,1761307841276,-151.0,0.00039979,120]
[392283565,1761307841286,-1268.253906,0.00039979,120]
[392283566,1761307841296,-151.0,0.00039979,120]
[392283567,1761307841306,-5502.046745,0.00039979,120]
[392283568,1761307841316,-151.0,0.00039979,120]
[392283569,1761307841326,-1192.86373,0.00039979,120]
[392283570,1761307841336,-151.0,0.00039979,120]
[392283571,1761307841346,-5502.046745,0.00039979,120]
[392283572,1761307841355,-184.835516,0.00039979,120]
[392283573,1761307841365,-1192.86373,0.00039979,120]
[392283574,1761307841376,-5502.046745,0.00039979,120]
[392283575,1761307841385,-151.0,0.00039979,120]
[392283576,1761307841395,-215.539619,0.00039979,120]
[392283577,1761307841405,-1192.86373,0.00039979,120]
[392283578,1761307841415,-5502.046745,0.00039979,120]
[392283579,1761307841425,-215.539619,0.00039979,120]
[392283580,1761307841435,-1192.86373,0.00039979,120]
[392283581,1761307841445,-215.539619,0.00039979,120]
[392283582,1761307841454,-500.0,0.0003998,30]
[392283583,1761307841464,-500.0,0.0003998,2]
[392283584,1761307841474,-151.0,0.0003998,120]
[392283585,1761307841484,-151.53906,0.0003998,120]
[392283586,1761307841495,-151.0,0.0003998,120]
[392283587,1761307841504,-471.32523,0.0003998,120]
[392283588,1761307841514,-471.32523,0.0003998,120]
[392283589,1761307841524,-471.32523,0.0003998,120]
[392283590,1761307841535,-471.32523,0.0003998,120]
[392283591,1761307841544,-151.0,0.0003998,120]
[392283592,1761307841555,-151.0,0.0003998,120]
[392283593,1761307841565,-151.0,0.0003998,120]
[392283594,1761307841576,-917.904031,0.0003998,120]
[392283595,1761307841586,-151.0,0.0003998,120]
[392283596,1761307841596,-151.0,0.0003998,120]
[392283597,1761307841606,-151.0,0.0003998,120]
[392283598,1761307841616,-151.0,0.0003998,120]
[392283599,1761307841631,-917.904031,0.0003998,120]
[392283600,1761307841641,-175.701742,0.0003998,120]
[392283601,1761307841652,-256.93135,0.0003998,120]
[392283602,1761307841663,-917.904031,0.0003998,120]
[392283603,1761307841673,-151.0,0.0003998,120]
[392283604,1761307841683,-151.0,0.0003998,60]
[392283605,1761307841693,-151.356497,0.0003998,120]
[392283606,1761307841704,-256.93135,0.0003998,120]
[392283607,1761307841714,-917.904031,0.0003998,120]
[392283608,1761307841725,-256.93135,0.0003998,120]
[392283609,1761307841734,-516.973854,0.0003998,120]
[392283610,1761307841744,-151.0,0.0003998,120]
[392283611,1761307841753,-151.0,0.0003998,30]
[392283612,1761307841763,-516.973854,0.0003998,120]
[392283613,1761307841773,-256.93135,0.0003998,120]
[392283614,1761307841782,-151.0,0.0003998,120]
[392283615,1761307841792,-260.662743,0.0003998,30]
[392283616,1761307841802,-516.973854,0.0003998,120]
[392283617,1761307841812,-151.0,0.0003998,120]
[392283618,1761307841821,-151.0,0.0003998,120]
[392283619,1761307841831,-151.0,0.0003998,120]
[392283620,1761307841841,-516.973854,0.0003998,120]
[392283621,1761307841851,-151.0,0.0003998,120]
[392283622,1761307841861,-151.0,0.0003998,120]
[392283623,1761307841870,-426.83885,0.0003998,120]
[392283624,1761307841880,-426.83885,0.0003998,120]
[392283625,1761307841890,-151.0,0.0003998,120]
[392283626,1761307841900,-426.83885,0.0003998,120]
[392283627,1761307841909,-426.83885,0.0003998,120]
[392283628,1761307841919,-151.0,0.0003998,120]
[392283629,1761307841929,-151.0,0.0003998,120]
[392283630,1761307841939,-151.0,0.0003998,120]
[392283631,1761307841948,-707.115867,0.0003998,120]
[392283632,1761307841958,-232.331738,0.0003998,120]
[392283633,1761307841968,-707.115867,0.0003998,120]
[392283634,1761307841977,-151.0,0.0003998,120]
[392283635,1761307841986,-1268.253906,0.0003998,120]
[392283636,1761307841996,-707.115867,0.0003998,120]
[392283637,1761307842006,-151.0,0.0003998,120]
[392283638,1761307842015,-1268.253906,0.0003998,120]
[392283639,1761307842025,-707.115867,0.0003998,120]
[392283640,1761307842035,-151.0,0.0003998,120]
[392283641,1761307842044,-151.0,0.0003998,120]
[392283642,1761307842053,-1268.253906,0.0003998,120]
[392283643,1761307842063,-153.096593,0.0003998,120]
[392283644,1761307842073,-1268.253906,0.0003998,120]
[392283645,1761307842083,-267.621809,0.0003998,120]
[392283646,1761307842092,-5502.046745,0.0003998,120]
[392283647,1761307842101,-151.0,0.0003998,120]
[392283648,1761307842111,-1192.86373,0.0003998,120]
[392283649,1761307842120,-238.579942,0.0003998,120]
[392283650,1761307842130,-5502.046745,0.0003998,120]
[392283651,1761307842139,-1192.86373,0.0003998,120]
[392283652,1761307842150,-5502.046745,0.0003998,120]
[392283653,1761307842159,-151.0,0.0003998,120]
[392283654,1761307842169,-215.539619,0.0003998,120]
[392283655,1761307842179,-1192.86373,0.0003998,120]
[392283656,1761307842188,-5502.046745,0.0003998,120]
[392283657,1761307842198,-215.539619,0.0003998,120]
[392283658,1761307842207,-1192.86373,0.0003998,120]
[392283659,1761307842216,-215.539619,0.0003998,120]
[392283660,1761307842226,-174268.935525,0.0003998,3]
[392283661,1761307842236,-223465.226845,0.0003998,3]
[392283662,1761307842245,-500.0,0.00039985,7]
[392283663,1761307842255,-9650.6296325,0.00039986,2]
[392283664,1761307842266,-123643.2852311,0.00039986,2]
[392283665,1761307842276,-151.0,0.00039986,14]
[392283666,1761307842285,-151.0,0.00039986,120]
[392283667,1761307842295,-211.533799,0.00039986,14]
[392283668,1761307842304,-151.0,0.00039986,120]
[392283669,1761307842313,-151.0,0.00039986,120]
[392283670,1761307842323,-151.0,0.00039986,120]
[392283671,1761307842332,-156.321072,0.00039986,120]
[392283672,1761307842343,-151.0,0.00039986,120]
[392283673,1761307842353,-151.0,0.00039986,120]
[392283674,1761307842362,-151.0,0.00039986,120]
[392283675,1761307842372,-345.190067,0.00039986,120]
[392283676,1761307842382,-151.0,0.00039986,120]
[392283677,1761307842392,-151.0,0.00039986,120]
[392283678,1761307842401,-154.002616,0.00039986,120]
[392283679,1761307842411,-345.190067,0.00039986,120]
[392283680,1761307842420,-345.190067,0.00039986,120]
[392283682,1761307842430,-345.190067,0.00039986,120]
[392283683,1761307842440,-151.0,0.00039986,120]
[392283684,1761307842449,-151.0,0.00039986,120]
[392283685,1761307842459,-151.0,0.00039986,120]
[392283686,1761307842469,-151.0,0.00039986,120]
[392283687,1761307842478,-151.0,0.00039986,120]
[392283688,1761307842488,-151.0,0.00039986,120]
[392283689,1761307842498,-158.846553,0.00039986,120]
[392283690,1761307842507,-151.0,0.00039986,120]
[392283691,1761307842517,-151.0,0.00039986,120]
[392283692,1761307842526,-151.0,0.00039986,120]
[392283693,1761307842535,-151.0,0.00039986,120]
[392283694,1761307842545,-151.0,0.00039986,120]
[392283695,1761307842554,-151.0,0.00039986,120]
[392283696,1761307842564,-151.0,0.00039986,120]
[392283697,1761307842574,-151.0,0.00039986,120]
[392283698,1761307842584,-151.0,0.00039986,120]
[392283699,1761307842594,-151.0,0.00039986,120]
[392283700,1761307842604,-151.0,0.00039986,120]
[392283702,1761307842614,-151.0,0.00039986,90]
[392283703,1761307842628,-1322.948623,0.00039986,120]
[392283704,1761307842637,-151.0,0.00039986,120]
[392283705,1761307842647,-1322.948623,0.00039986,120]
[392283706,1761307842657,-335.649188,0.00039986,120]
[392283707,1761307842666,-335.649188,0.00039986,120]
[392283708,1761307842675,-220.254503,0.00039986,120]
[392283709,1761307842684,-335.649188,0.00039986,120]
[392283710,1761307842694,-220.254503,0.00039986,120]
[392283711,1761307842703,-335.649188,0.00039986,120]
[392283712,1761307842712,-220.254503,0.00039986,120]
[392283713,1761307842722,-220.254503,0.00039986,120]
[392283714,1761307842732,-151.0,0.00039986,120]
[392283715,1761307842741,-151.0,0.00039986,120]
[392283716,1761307842821,-299.06848369,0.00039986,120]
[392283717,1761307842831,-167.12577,0.00039986,120]
[392283718,1761307842840,-151.0,0.00039986,120]
[392283719,1761307842849,-613.593039,0.00039986,120]
[392283720,1761307842859,-613.593039,0.00039986,120]
[392283721,1761307842868,-613.593039,0.00039986,120]
[392283722,1761307842878,-151.0,0.00039986,120]
[392283723,1761307842887,-613.593039,0.00039986,120]
[392283724,1761307842897,-151.0,0.00039986,120]
[392283725,1761307842906,-151.0,0.00039986,120]
[392283726,1761307842915,-151.0,0.00039986,120]
[392283727,1761307842925,-151.0,0.00039986,120]
[392283728,1761307842934,-1036.525727,0.00039986,120]
[392283729,1761307842943,-151.0,0.00039986,120]
[392283730,1761307842952,-1036.525727,0.00039986,120]
[392283731,1761307842963,-174.884427,0.00039986,120]
[392283733,1761307842973,-1036.525727,0.00039986,120]
[392283735,1761307842982,-174.884427,0.00039986,120]
[392283737,1761307842992,-151.0,0.00039986,120]
[392283738,1761307843001,-1036.525727,0.00039986,120]
[392283739,1761307843010,-151.0,0.00039986,120]
[392283740,1761307843019,-151.0,0.00039986,120]
[392283741,1761307843028,-174.884427,0.00039986,120]
[392283742,1761307843037,-276.683143,0.00039986,120]
[392283743,1761307843047,-224.899202,0.00039986,120]
[392283744,1761307843056,-174.884427,0.00039986,120]
[392283745,1761307843066,-151.0,0.00039986,120]
[392283746,1761307843075,-224.899202,0.00039986,120]
[392283747,1761307843084,-151.0,0.00039986,120]
[392283748,1761307843093,-224.899202,0.00039986,120]
[392283749,1761307843103,-224.899202,0.00039986,120]
[392283750,1761307843112,-151.0,0.00039986,120]
[392283751,1761307843121,-151.0,0.00039986,120]
[392283752,1761307843130,-151.0,0.00039986,120]
[392283753,1761307843139,-151.0,0.00039986,120]
[392283754,1761307843148,-151.0,0.00039986,120]
[392283755,1761307843157,-151.0,0.00039986,120]
[392283756,1761307843167,-151.0,0.00039986,120]
[392283758,1761307843176,-151.0,0.00039986,120]
[392283759,1761307843185,-151.0,0.00039986,120]
[392283760,1761307843194,-261.381651,0.00039986,120]
[392283761,1761307843203,-151.0,0.00039986,120]
[392283762,1761307843212,-261.381651,0.00039986,120]
[392283763,1761307843221,-151.0,0.00039986,120]
[392283764,1761307843231,-151.0,0.00039986,30]
[392283765,1761307843240,-151.0,0.00039986,120]
[392283766,1761307843249,-261.381651,0.00039986,120]
[392283767,1761307843259,-151.0,0.00039986,30]
[392283768,1761307843269,-151.0,0.00039986,120]
[392283769,1761307843280,-151.0,0.00039986,120]
[392283770,1761307843289,-261.381651,0.00039986,120]
[392283771,1761307843299,-151.0,0.00039986,120]
[392283772,1761307843309,-151.0,0.00039986,120]
[392283773,1761307843319,-151.0,0.00039986,120]
[392283774,1761307843330,-151.0,0.00039986,120]
[392283775,1761307843341,-151.0,0.00039986,120]
[392283776,1761307843350,-152.02075,0.00039986,120]
[392283777,1761307843360,-151.0,0.00039986,120]
[392283778,1761307843370,-151.0,0.00039986,120]
[392283779,1761307843379,-152.02075,0.00039986,120]
[392283780,1761307843388,-151.0,0.00039986,120]
[392283781,1761307843397,-151.0,0.00039986,120]
[392283782,1761307843407,-151.0,0.00039986,120]
[392283783,1761307843416,-152.02075,0.00039986,120]
[392283784,1761307843425,-151.0,0.00039986,120]
[392283785,1761307843435,-152.02075,0.00039986,120]
[392283786,1761307843444,-151.0,0.00039986,120]
[392283787,1761307843454,-880.38435,0.00039986,120]
[392283788,1761307843463,-288.712987,0.00039986,120]
[392283789,1761307843472,-334.937302,0.00039986,120]
[392283790,1761307843482,-880.38435,0.00039986,120]
[392283791,1761307843492,-151.0,0.00039986,120]
[392283792,1761307843502,-151.0,0.00039986,120]
[392283793,1761307843511,-271.943209,0.00039986,120]
[392283794,1761307843520,-151.0,0.00039986,120]
[392283795,1761307843529,-880.38435,0.00039986,120]
[392283796,1761307843539,-271.943209,0.00039986,120]
[392283797,1761307843548,-226.426142,0.00039986,120]
[392283798,1761307843557,-151.0,0.00039986,120]
[392283799,1761307843567,-151.0,0.00039986,120]
[392283800,1761307843576,-880.38435,0.00039986,120]
[392283801,1761307843586,-158.058753,0.00039986,120]
[392283802,1761307843595,-271.943209,0.00039986,120]
[392283803,1761307843604,-271.943209,0.00039986,120]
[392283804,1761307843615,-151.0,0.00039986,120]
[392283805,1761307843629,-151.0,0.00039986,120]
[392283806,1761307843639,-151.0,0.00039986,120]
[392283807,1761307843648,-373.73733,0.00039986,120]
[392283808,1761307843657,-184.788242,0.00039986,120]
[392283809,1761307843668,-151.0,0.00039986,120]
[392283810,1761307843677,-373.73733,0.00039986,120]
[392283811,1761307843686,-698.815274,0.00039986,120]
[392283812,1761307843698,-151.0,0.00039986,120]
[392283813,1761307843707,-332.82,0.00039986,30]
[392283814,1761307843717,-698.815274,0.00039986,120]
[392283815,1761307843727,-373.73733,0.00039986,120]
[392283816,1761307843735,-247.663628,0.00039986,120]
[392283817,1761307843744,-373.73733,0.00039986,120]
[392283818,1761307843753,-247.663628,0.00039986,120]
[392283819,1761307843762,-698.815274,0.00039986,120]
[392283820,1761307843772,-184.686739,0.00039986,120]
[392283821,1761307843781,-247.663628,0.00039986,120]
[392283822,1761307843790,-698.815274,0.00039986,120]
[392283823,1761307843800,-184.686739,0.00039986,120]
[392283824,1761307843809,-247.663628,0.00039986,120]
[392283825,1761307843818,-151.0,0.00039986,120]
[392283826,1761307843827,-184.686739,0.00039986,120]
[392283827,1761307843836,-151.0,0.00039986,120]
[392283828,1761307843845,-151.0,0.00039986,120]
[392283829,1761307843854,-184.686739,0.00039986,120]
[392283830,1761307843864,-151.0,0.00039986,120]
[392283831,1761307843873,-151.0,0.00039986,120]
[392283832,1761307843882,-333.224117,0.00039986,120]
[392283833,1761307843892,-151.0,0.00039986,30]
[392283834,1761307843901,-333.224117,0.00039986,120]
[392283835,1761307843910,-239.156984,0.00039986,120]
[392283836,1761307843919,-333.224117,0.00039986,120]
[392283837,1761307843928,-641.645906,0.00039986,120]
[392283838,1761307843937,-333.224117,0.00039986,120]
[392283839,1761307843946,-151.0,0.00039986,120]
[392283840,1761307843955,-151.0,0.00039986,120]
[392283841,1761307843964,-641.645906,0.00039986,120]
[392283842,1761307843974,-151.0,0.00039986,120]
[392283843,1761307843983,-494.954697,0.00039986,120]
[392283844,1761307843992,-641.645906,0.00039986,120]
[392283845,1761307844002,-151.0,0.00039986,120]
[392283846,1761307844011,-151.0,0.00039986,120]
[392283847,1761307844021,-494.954697,0.00039986,120]
[392283848,1761307844030,-641.645906,0.00039986,120]
[392283849,1761307844039,-151.0,0.00039986,120]
[392283850,1761307844049,-151.0,0.00039986,120]
[392283851,1761307844058,-151.0,0.00039986,120]
[392283852,1761307844067,-151.0,0.00039986,120]
[392283853,1761307844076,-494.954697,0.00039986,120]
[392283854,1761307844085,-494.954697,0.00039986,120]
[392283855,1761307844095,-151.0,0.00039986,120]
[392283856,1761307844104,-151.0,0.00039986,120]
[392283857,1761307844113,-151.0,0.00039986,120]
[392283858,1761307844123,-151.0,0.00039986,120]
[392283859,1761307844132,-151.0,0.00039986,120]
[392283860,1761307844140,-151.0,0.00039986,120]
[392283861,1761307844150,-151.0,0.00039986,120]
[392283862,1761307844159,-151.0,0.00039986,120]
[392283863,1761307844167,-151.0,0.00039986,120]
[392283864,1761307844177,-283.864456,0.00039986,120]
[392283865,1761307844186,-151.0,0.00039986,120]
[392283866,1761307844196,-283.864456,0.00039986,120]
[392283867,1761307844205,-223.29691,0.00039986,120]
[392283868,1761307844215,-471.32523,0.00039986,120]
[392283869,1761307844225,-283.864456,0.00039986,120]
[392283870,1761307844234,-223.29691,0.00039986,120]
[392283871,1761307844243,-471.32523,0.00039986,120]
[392283872,1761307844252,-283.864456,0.00039986,120]
[392283873,1761307844262,-223.29691,0.00039986,120]
[392283874,1761307844271,-471.32523,0.00039986,120]